[Event "Titled Tuesday Blitz July 05 Early 2022"]
[White "Ahn, Hongjin"]
[Black "Bharath Subramaniyam H"]
[WhiteFideId "13201492"]
[BlackFideId "46634827"]
[WhiteElo "1873"]
[BlackElo "2242"]
[Result "1-0"]
[Round "01"]
[TimeControl "180+1"]
[Date "2022.07.05"]
[WhiteClock "0:00:06"]
[BlackClock "0:00:05"]

1. d4 {[%clk 0:02:58]}  Nf6 {[%clk 0:02:59]} 2. c4 {[%clk 0:02:57]}  b6 {[%clk 0:02:58]} 3. Nf3 {[%clk 0:02:56]}  Bb7 {[%clk 0:02:58]} 4. g3 {[%clk 0:02:54]}  g6 {[%clk 0:02:57]} 5. Bg2 {[%clk 0:02:54]}  Bg7 {[%clk 0:02:58]} 6. O-O {[%clk 0:02:54]}  O-O {[%clk 0:02:58]} 7. b3 {[%clk 0:02:55]}  c5 {[%clk 0:02:56]} 8. Bb2 {[%clk 0:02:55]}  cxd4 {[%clk 0:02:55]} 9. Bxd4 {[%clk 0:02:54]}  Nc6 {[%clk 0:02:54]} 10. Bb2 {[%clk 0:02:54]}  d5 {[%clk 0:02:52]} 11. cxd5 {[%clk 0:02:54]}  Qxd5 {[%clk 0:02:47]} 12. Nc3 {[%clk 0:02:52]}  Qh5 {[%clk 0:02:46]} 13. Rc1 {[%clk 0:02:41]}  Rfd8 {[%clk 0:02:44]} 14. Qc2 {[%clk 0:02:41]}  Rac8 {[%clk 0:02:43]} 15. Qb1 {[%clk 0:02:41]}  Ba6 {[%clk 0:02:25]} 16. Rfd1 {[%clk 0:02:35]}  Nb4 {[%clk 0:02:06]} 17. Rxd8+ {[%clk 0:02:27]}  Rxd8 {[%clk 0:02:06]} 18. Rd1 {[%clk 0:02:27]}  Rxd1+ {[%clk 0:01:54]} 19. Qxd1 {[%clk 0:02:28]}  Nc6 {[%clk 0:01:51]} 20. h3 {[%clk 0:02:06]}  Bb7 {[%clk 0:01:48]} 21. Nd2 {[%clk 0:01:56]}  Qe5 {[%clk 0:01:40]} 22. Nc4 {[%clk 0:01:53]}  Qb8 {[%clk 0:01:40]} 23. Nd5 {[%clk 0:01:42]}  Nxd5 {[%clk 0:01:38]} 24. Bxg7 {[%clk 0:01:42]}  Kxg7 {[%clk 0:01:33]} 25. Qxd5 {[%clk 0:01:29]}  Qc7 {[%clk 0:01:27]} 26. Qd3 {[%clk 0:01:25]}  h5 {[%clk 0:01:24]} 27. Qc3+ {[%clk 0:01:22]}  Kg8 {[%clk 0:01:21]} 28. Ne3 {[%clk 0:01:20]}  Qd6 {[%clk 0:01:17]} 29. Bd5 {[%clk 0:01:14]}  e6 {[%clk 0:01:13]} 30. Qf6 {[%clk 0:01:09]}  Ba6 {[%clk 0:01:06]} 31. Bxc6 {[%clk 0:00:39]}  Qxc6 {[%clk 0:01:07]} 32. Qd8+ {[%clk 0:00:39]}  Kg7 {[%clk 0:01:05]} 33. Qd4+ {[%clk 0:00:40]}  Kh7 {[%clk 0:01:06]} 34. Qf6 {[%clk 0:00:37]}  Qc7 {[%clk 0:01:00]} 35. Kf1 {[%clk 0:00:29]}  Kg8 {[%clk 0:00:58]} 36. g4 {[%clk 0:00:24]}  Qc1+ {[%clk 0:00:38]} 37. Kg2 {[%clk 0:00:23]}  Bxe2 {[%clk 0:00:38]} 38. Qd8+ {[%clk 0:00:20]}  Kh7 {[%clk 0:00:36]} 39. Qd7 {[%clk 0:00:18]}  Kg7 {[%clk 0:00:33]} 40. Qd4+ {[%clk 0:00:17]}  e5 {[%clk 0:00:21]} 41. Qxe5+ {[%clk 0:00:17]}  Kh7 {[%clk 0:00:21]} 42. Qf6 {[%clk 0:00:16]}  Qc7 {[%clk 0:00:21]} 43. gxh5 {[%clk 0:00:15]}  Bxh5 {[%clk 0:00:21]} 44. Nd5 {[%clk 0:00:14]}  Qb7 {[%clk 0:00:21]} 45. Qe5 {[%clk 0:00:13]}  f6 {[%clk 0:00:20]} 46. Qe6 {[%clk 0:00:08]}  f5 {[%clk 0:00:12]} 47. Kg1 {[%clk 0:00:08]}  Bf3 {[%clk 0:00:11]} 48. Ne7 {[%clk 0:00:05]}  Kh8 {[%clk 0:00:05]} 49. Qf6+ {[%clk 0:00:04]}  Kh7 {[%clk 0:00:04]} 50. Qxg6+ {[%clk 0:00:05]}  Kh8 {[%clk 0:00:05]} 51. Qg8# {[%clk 0:00:06]} 1-0


[Site "https://www.chess.com"]

[Event "Titled Tuesday Blitz July 05 Early 2022"]
[White "Cremisi, Daniel"]
[Black "Kamsky, Gata"]
[WhiteFideId "2089882"]
[BlackFideId "2000024"]
[WhiteElo "2172"]
[BlackElo "2645"]
[Result "0-1"]
[Round "01"]
[TimeControl "180+1"]
[Date "2022.07.05"]
[WhiteClock "0:00:22"]
[BlackClock "0:00:40"]

1. d4 {[%clk 0:02:42]}  Nf6 {[%clk 0:02:57]} 2. c4 {[%clk 0:02:41]}  e6 {[%clk 0:02:55]} 3. Nf3 {[%clk 0:02:40]}  b6 {[%clk 0:02:50]} 4. g3 {[%clk 0:02:39]}  a5 {[%clk 0:02:49]} 5. Bg2 {[%clk 0:02:39]}  Ba6 {[%clk 0:02:49]} 6. Qc2 {[%clk 0:02:38]}  c6 {[%clk 0:02:49]} 7. O-O {[%clk 0:02:38]}  d5 {[%clk 0:02:49]} 8. b3 {[%clk 0:02:38]}  Be7 {[%clk 0:02:47]} 9. Rd1 {[%clk 0:02:38]}  Nbd7 {[%clk 0:02:46]} 10. Bf4 {[%clk 0:02:32]}  O-O {[%clk 0:02:44]} 11. Nbd2 {[%clk 0:02:32]}  Nh5 {[%clk 0:02:40]} 12. e4 {[%clk 0:02:28]}  Nxf4 {[%clk 0:02:39]} 13. gxf4 {[%clk 0:02:28]}  Rc8 {[%clk 0:02:18]} 14. Ne5 {[%clk 0:02:28]}  Nxe5 {[%clk 0:02:11]} 15. fxe5 {[%clk 0:02:27]}  Bg5 {[%clk 0:02:10]} 16. Qd3 {[%clk 0:02:23]}  c5 {[%clk 0:01:59]} 17. exd5 {[%clk 0:02:19]}  exd5 {[%clk 0:01:58]} 18. Bxd5 {[%clk 0:01:42]}  Qxd5 {[%clk 0:01:36]} 19. cxd5 {[%clk 0:01:18]}  Bxd3 {[%clk 0:01:33]} 20. Nf3 {[%clk 0:01:18]}  Be2 {[%clk 0:01:32]} 21. Nxg5 {[%clk 0:01:18]}  Bxd1 {[%clk 0:01:32]} 22. Rxd1 {[%clk 0:01:17]}  cxd4 {[%clk 0:01:28]} 23. Rxd4 {[%clk 0:01:17]}  f6 {[%clk 0:01:20]} 24. Nf3 {[%clk 0:01:01]}  fxe5 {[%clk 0:01:16]} 25. Nxe5 {[%clk 0:01:01]}  Rc1+ {[%clk 0:01:04]} 26. Kg2 {[%clk 0:01:00]}  Rc2 {[%clk 0:01:05]} 27. d6 {[%clk 0:00:56]}  Rfxf2+ {[%clk 0:01:03]} 28. Kg3 {[%clk 0:00:56]}  Rfd2 {[%clk 0:00:59]} 29. Rc4 {[%clk 0:00:47]}  Rxc4 {[%clk 0:00:55]} 30. Nxc4 {[%clk 0:00:47]}  Rd3+ {[%clk 0:00:55]} 31. Kf4 {[%clk 0:00:47]}  b5 {[%clk 0:00:55]} 32. Nxa5 {[%clk 0:00:37]}  Rxd6 {[%clk 0:00:54]} 33. Nb7 {[%clk 0:00:34]}  Rd2 {[%clk 0:00:53]} 34. a4 {[%clk 0:00:34]}  bxa4 {[%clk 0:00:53]} 35. bxa4 {[%clk 0:00:35]}  Rxh2 {[%clk 0:00:53]} 36. Ke5 {[%clk 0:00:34]}  Ra2 {[%clk 0:00:52]} 37. Nc5 {[%clk 0:00:34]}  h5 {[%clk 0:00:51]} 38. Kf4 {[%clk 0:00:33]}  Rc2 {[%clk 0:00:41]} 39. Ne4 {[%clk 0:00:24]}  Rc4 {[%clk 0:00:41]} 40. a5 {[%clk 0:00:22]}  Ra4 {[%clk 0:00:40]} 0-1


[Site "https://www.chess.com"]

[Event "Titled Tuesday Blitz July 05 Early 2022"]
[White "Deac, Bogdan-Daniel"]
[Black "Nozdrachev, Leonid"]
[WhiteFideId "1226380"]
[BlackFideId "24113433"]
[WhiteElo "2648"]
[BlackElo "2100"]
[Result "1-0"]
[Round "01"]
[TimeControl "180+1"]
[Date "2022.07.05"]
[WhiteClock "0:01:40"]
[BlackClock "0:01:03"]

1. d4 {[%clk 0:03:00]}  Nf6 {[%clk 0:02:54]} 2. c4 {[%clk 0:03:01]}  e6 {[%clk 0:02:49]} 3. Nf3 {[%clk 0:03:02]}  Bb4+ {[%clk 0:02:47]} 4. Bd2 {[%clk 0:03:00]}  Qe7 {[%clk 0:02:46]} 5. g3 {[%clk 0:02:59]}  O-O {[%clk 0:02:44]} 6. Bg2 {[%clk 0:02:59]}  d5 {[%clk 0:02:37]} 7. O-O {[%clk 0:02:54]}  b6 {[%clk 0:02:34]} 8. Bg5 {[%clk 0:02:51]}  a5 {[%clk 0:02:32]} 9. a3 {[%clk 0:02:40]}  Bd6 {[%clk 0:02:30]} 10. cxd5 {[%clk 0:02:40]}  exd5 {[%clk 0:02:28]} 11. Nc3 {[%clk 0:02:40]}  Be6 {[%clk 0:02:19]} 12. Nh4 {[%clk 0:02:18]}  c6 {[%clk 0:02:01]} 13. e4 {[%clk 0:02:16]}  dxe4 {[%clk 0:01:55]} 14. Nxe4 {[%clk 0:02:14]}  Nbd7 {[%clk 0:01:25]} 15. Re1 {[%clk 0:02:13]}  Bc7 {[%clk 0:01:03]} 16. Nxf6+ {[%clk 0:01:44]}  Nxf6 {[%clk 0:01:04]} 17. Bxc6 {[%clk 0:01:40]}  Rad8 {[%clk 0:01:03]} 18. Nf5 {[%clk 0:01:40]} 1-0


[Site "https://www.chess.com"]

[Event "Titled Tuesday Blitz July 05 Early 2022"]
[White "Ferreira, Vitor Hugo Vieira"]
[Black "Terry, Renato"]
[WhiteFideId "2119765"]
[BlackFideId "3803457"]
[WhiteElo "2168"]
[BlackElo "2577"]
[Result "0-1"]
[Round "01"]
[TimeControl "180+1"]
[Date "2022.07.05"]
[WhiteClock "0:00:43"]
[BlackClock "0:01:32"]

1. d4 {[%clk 0:02:53]}  Nf6 {[%clk 0:02:58]} 2. c4 {[%clk 0:02:53]}  b6 {[%clk 0:02:58]} 3. d5 {[%clk 0:02:52]}  e6 {[%clk 0:02:57]} 4. Nc3 {[%clk 0:02:52]}  Bb4 {[%clk 0:02:57]} 5. dxe6 {[%clk 0:02:52]}  fxe6 {[%clk 0:02:54]} 6. Nf3 {[%clk 0:02:47]}  O-O {[%clk 0:02:51]} 7. Bd2 {[%clk 0:02:44]}  Bb7 {[%clk 0:02:50]} 8. g3 {[%clk 0:02:43]}  Nc6 {[%clk 0:02:42]} 9. Bg2 {[%clk 0:02:43]}  Ne5 {[%clk 0:02:43]} 10. Qb3 {[%clk 0:02:33]}  Bc5 {[%clk 0:02:41]} 11. O-O {[%clk 0:02:32]}  Nxf3+ {[%clk 0:02:01]} 12. exf3 {[%clk 0:02:32]}  Qe8 {[%clk 0:01:58]} 13. Nb5 {[%clk 0:02:30]}  Qh5 {[%clk 0:01:54]} 14. Nxc7 {[%clk 0:02:12]}  Rac8 {[%clk 0:01:54]} 15. Nb5 {[%clk 0:02:12]}  d5 {[%clk 0:01:54]} 16. f4 {[%clk 0:01:18]}  dxc4 {[%clk 0:01:53]} 17. Qa4 {[%clk 0:01:13]}  Bxg2 {[%clk 0:01:50]} 18. Kxg2 {[%clk 0:01:13]}  Qd5+ {[%clk 0:01:50]} 19. Kg1 {[%clk 0:01:11]}  Qxd2 {[%clk 0:01:50]} 20. Rad1 {[%clk 0:01:10]}  Qxb2 {[%clk 0:01:45]} 21. Nxa7 {[%clk 0:01:05]}  Ra8 {[%clk 0:01:45]} 22. Qxc4 {[%clk 0:01:04]}  Rxa7 {[%clk 0:01:44]} 23. Qxe6+ {[%clk 0:01:04]}  Kh8 {[%clk 0:01:45]} 24. a4 {[%clk 0:01:00]}  Rxa4 {[%clk 0:01:41]} 25. h4 {[%clk 0:00:55]}  Qa2 {[%clk 0:01:40]} 26. Qf5 {[%clk 0:00:54]}  h6 {[%clk 0:01:36]} 27. g4 {[%clk 0:00:54]}  Bxf2+ {[%clk 0:01:34]} 28. Rxf2 {[%clk 0:00:52]}  Qxf2+ {[%clk 0:01:32]} 29. Kxf2 {[%clk 0:00:50]}  Ne4+ {[%clk 0:01:32]} 30. Qxe4 {[%clk 0:00:43]}  Rxe4 {[%clk 0:01:32]} 0-1


[Site "https://www.chess.com"]

[Event "Titled Tuesday Blitz July 05 Early 2022"]
[White "Florescu, Codrut-Constantin"]
[Black "Fedoseev, Vladimir"]
[WhiteFideId "1202200"]
[BlackFideId "24130737"]
[WhiteElo "2191"]
[BlackElo "2726"]
[Result "0-1"]
[Round "01"]
[TimeControl "180+1"]
[Date "2022.07.05"]
[WhiteClock "0:00:43"]
[BlackClock "0:00:32"]

1. d4 {[%clk 0:03:00]}  Nf6 {[%clk 0:02:35]} 2. Nf3 {[%clk 0:03:00]}  e6 {[%clk 0:02:35]} 3. c4 {[%clk 0:03:01]}  b6 {[%clk 0:02:33]} 4. g3 {[%clk 0:03:01]}  Bb7 {[%clk 0:02:33]} 5. Bg2 {[%clk 0:03:01]}  Be7 {[%clk 0:02:34]} 6. O-O {[%clk 0:03:01]}  O-O {[%clk 0:02:34]} 7. Re1 {[%clk 0:03:02]}  d5 {[%clk 0:02:32]} 8. cxd5 {[%clk 0:03:01]}  exd5 {[%clk 0:02:31]} 9. Nc3 {[%clk 0:03:00]}  Nbd7 {[%clk 0:02:29]} 10. Bf4 {[%clk 0:02:58]}  Ne4 {[%clk 0:02:18]} 11. Ne5 {[%clk 0:02:57]}  Nxe5 {[%clk 0:02:08]} 12. Bxe5 {[%clk 0:02:55]}  Bb4 {[%clk 0:02:02]} 13. Qd3 {[%clk 0:02:43]}  Re8 {[%clk 0:01:56]} 14. a3 {[%clk 0:02:40]}  Bxc3 {[%clk 0:01:53]} 15. bxc3 {[%clk 0:02:39]}  c5 {[%clk 0:01:53]} 16. Bf4 {[%clk 0:02:34]}  Rc8 {[%clk 0:01:51]} 17. Rac1 {[%clk 0:02:32]}  Qd7 {[%clk 0:01:48]} 18. f3 {[%clk 0:02:16]}  Nd6 {[%clk 0:01:44]} 19. a4 {[%clk 0:01:53]}  Nc4 {[%clk 0:01:41]} 20. Ra1 {[%clk 0:01:41]}  Bc6 {[%clk 0:01:36]} 21. e4 {[%clk 0:01:39]}  Nb2 {[%clk 0:01:29]} 22. Qd2 {[%clk 0:01:27]}  Nxa4 {[%clk 0:01:27]} 23. e5 {[%clk 0:01:26]}  cxd4 {[%clk 0:01:20]} 24. cxd4 {[%clk 0:01:25]}  b5 {[%clk 0:01:13]} 25. Be3 {[%clk 0:01:23]}  Nb6 {[%clk 0:01:08]} 26. Bf2 {[%clk 0:01:23]}  Nc4 {[%clk 0:01:08]} 27. Qd3 {[%clk 0:01:14]}  b4 {[%clk 0:01:07]} 28. f4 {[%clk 0:01:14]}  a5 {[%clk 0:01:05]} 29. f5 {[%clk 0:01:13]}  a4 {[%clk 0:01:03]} 30. f6 {[%clk 0:01:13]}  b3 {[%clk 0:01:01]} 31. Qf1 {[%clk 0:01:04]}  Qf5 {[%clk 0:00:44]} 32. Bh3 {[%clk 0:01:02]}  Qg6 {[%clk 0:00:44]} 33. Bxc8 {[%clk 0:00:56]}  Rxc8 {[%clk 0:00:45]} 34. Qh3 {[%clk 0:00:56]}  Re8 {[%clk 0:00:45]} 35. e6 {[%clk 0:00:56]}  b2 {[%clk 0:00:43]} 36. Rad1 {[%clk 0:00:48]}  a3 {[%clk 0:00:41]} 37. exf7+ {[%clk 0:00:47]}  Kxf7 {[%clk 0:00:39]} 38. Rxe8 {[%clk 0:00:45]}  Bxe8 {[%clk 0:00:37]} 39. Qc8 {[%clk 0:00:43]}  b1=Q {[%clk 0:00:32]} 40. Qc7+ {[%clk 0:00:43]}  Kxf6 {[%clk 0:00:32]} 0-1


[Site "https://www.chess.com"]

[Event "Titled Tuesday Blitz July 05 Early 2022"]
[White "Grandelius, Nils"]
[Black "Leisch, Lukas"]
[WhiteFideId "1710400"]
[BlackFideId "1632094"]
[WhiteElo "2617"]
[BlackElo "2216"]
[Result "1-0"]
[Round "01"]
[TimeControl "180+1"]
[Date "2022.07.05"]
[WhiteClock "0:00:29"]
[BlackClock "0:00:01"]

1. d4 {[%clk 0:03:00]}  d5 {[%clk 0:02:59]} 2. Bf4 {[%clk 0:02:57]}  Nf6 {[%clk 0:02:59]} 3. e3 {[%clk 0:02:56]}  e6 {[%clk 0:02:58]} 4. c4 {[%clk 0:02:54]}  c5 {[%clk 0:02:52]} 5. Nf3 {[%clk 0:02:41]}  Nc6 {[%clk 0:02:48]} 6. Nc3 {[%clk 0:02:38]}  a6 {[%clk 0:02:39]} 7. dxc5 {[%clk 0:02:19]}  Bxc5 {[%clk 0:02:35]} 8. cxd5 {[%clk 0:02:14]}  exd5 {[%clk 0:02:19]} 9. Bd3 {[%clk 0:02:12]}  O-O {[%clk 0:02:16]} 10. O-O {[%clk 0:02:10]}  d4 {[%clk 0:02:04]} 11. exd4 {[%clk 0:01:48]}  Nxd4 {[%clk 0:02:04]} 12. Ne5 {[%clk 0:01:49]}  Bf5 {[%clk 0:01:55]} 13. Bxf5 {[%clk 0:01:35]}  Nxf5 {[%clk 0:01:55]} 14. Qf3 {[%clk 0:01:36]}  Qe7 {[%clk 0:01:16]} 15. Rfe1 {[%clk 0:01:31]}  Rfe8 {[%clk 0:01:16]} 16. Nd3 {[%clk 0:01:25]}  Qf8 {[%clk 0:01:16]} 17. Qxb7 {[%clk 0:01:18]}  Bd4 {[%clk 0:00:50]} 18. Rxe8 {[%clk 0:01:14]}  Qxe8 {[%clk 0:00:46]} 19. Re1 {[%clk 0:01:12]}  Qc8 {[%clk 0:00:40]} 20. Qb3 {[%clk 0:00:59]}  h6 {[%clk 0:00:25]} 21. h3 {[%clk 0:00:59]}  Ra7 {[%clk 0:00:17]} 22. Nd5 {[%clk 0:00:47]}  Nxd5 {[%clk 0:00:12]} 23. Qxd5 {[%clk 0:00:47]}  Bf6 {[%clk 0:00:07]} 24. b4 {[%clk 0:00:38]}  Qd7 {[%clk 0:00:07]} 25. Qxd7 {[%clk 0:00:35]}  Rxd7 {[%clk 0:00:08]} 26. Nc5 {[%clk 0:00:36]}  Ra7 {[%clk 0:00:08]} 27. a4 {[%clk 0:00:28]}  Bc3 {[%clk 0:00:06]} 28. Rb1 {[%clk 0:00:29]}  Nd4 {[%clk 0:00:04]} 29. Kf1 {[%clk 0:00:29]}  Nc6 {[%clk 0:00:03]} 30. b5 {[%clk 0:00:28]}  axb5 {[%clk 0:00:03]} 31. axb5 {[%clk 0:00:29]}  Nd8 {[%clk 0:00:02]} 32. b6 {[%clk 0:00:29]}  Ra5 {[%clk 0:00:01]} 33. b7 {[%clk 0:00:29]} 1-0


[Site "https://www.chess.com"]

[Event "Titled Tuesday Blitz July 05 Early 2022"]
[White "Hansen, Eric"]
[Black "Odegov, Artem"]
[WhiteFideId "2606771"]
[BlackFideId "34183644"]
[WhiteElo "2568"]
[BlackElo "2286"]
[Result "1-0"]
[Round "01"]
[TimeControl "180+1"]
[Date "2022.07.05"]
[WhiteClock "0:00:33"]
[BlackClock "0:00:02"]

1. e4 {[%clk 0:02:21]}  e6 {[%clk 0:02:54]} 2. d4 {[%clk 0:02:16]}  d5 {[%clk 0:02:51]} 3. Nd2 {[%clk 0:02:16]}  Nf6 {[%clk 0:02:41]} 4. e5 {[%clk 0:02:13]}  Nfd7 {[%clk 0:02:42]} 5. Bd3 {[%clk 0:02:13]}  c5 {[%clk 0:02:41]} 6. c3 {[%clk 0:02:14]}  Nc6 {[%clk 0:02:42]} 7. Ne2 {[%clk 0:02:14]}  cxd4 {[%clk 0:02:43]} 8. cxd4 {[%clk 0:02:14]}  f6 {[%clk 0:02:43]} 9. exf6 {[%clk 0:02:14]}  Nxf6 {[%clk 0:02:44]} 10. Nf3 {[%clk 0:02:12]}  Bd6 {[%clk 0:02:44]} 11. O-O {[%clk 0:02:12]}  Qc7 {[%clk 0:02:44]} 12. g3 {[%clk 0:02:11]}  O-O {[%clk 0:02:43]} 13. Bf4 {[%clk 0:02:10]}  Ng4 {[%clk 0:02:33]} 14. Qc1 {[%clk 0:02:08]}  e5 {[%clk 0:02:22]} 15. dxe5 {[%clk 0:02:06]}  Ngxe5 {[%clk 0:02:17]} 16. Nxe5 {[%clk 0:02:07]}  Bxe5 {[%clk 0:02:08]} 17. Bxe5 {[%clk 0:01:57]}  Qxe5 {[%clk 0:02:09]} 18. Nf4 {[%clk 0:01:54]}  Bg4 {[%clk 0:01:28]} 19. Re1 {[%clk 0:01:52]}  Qd4 {[%clk 0:01:16]} 20. Qe3 {[%clk 0:01:29]}  Qxe3 {[%clk 0:00:35]} 21. Rxe3 {[%clk 0:01:28]}  Rad8 {[%clk 0:00:26]} 22. h4 {[%clk 0:01:25]}  Kh8 {[%clk 0:00:11]} 23. a3 {[%clk 0:01:17]}  Nd4 {[%clk 0:00:12]} 24. Kg2 {[%clk 0:01:16]}  Bf5 {[%clk 0:00:07]} 25. Rae1 {[%clk 0:01:16]}  Bxd3 {[%clk 0:00:07]} 26. Rxd3 {[%clk 0:01:17]}  Nc6 {[%clk 0:00:03]} 27. Ne6 {[%clk 0:01:00]}  d4 {[%clk 0:00:04]} 28. Nxf8 {[%clk 0:00:58]}  Rxf8 {[%clk 0:00:04]} 29. b4 {[%clk 0:00:58]}  a6 {[%clk 0:00:04]} 30. Re6 {[%clk 0:00:55]}  Rd8 {[%clk 0:00:04]} 31. f4 {[%clk 0:00:53]}  Kg8 {[%clk 0:00:04]} 32. Kf3 {[%clk 0:00:52]}  Kf7 {[%clk 0:00:04]} 33. f5 {[%clk 0:00:52]}  Rd5 {[%clk 0:00:04]} 34. Ke4 {[%clk 0:00:52]}  Rd7 {[%clk 0:00:04]} 35. g4 {[%clk 0:00:52]}  g6 {[%clk 0:00:04]} 36. Rxc6 {[%clk 0:00:42]}  bxc6 {[%clk 0:00:04]} 37. fxg6+ {[%clk 0:00:42]}  hxg6 {[%clk 0:00:04]} 38. Rxd4 {[%clk 0:00:43]}  Re7+ {[%clk 0:00:03]} 39. Kf4 {[%clk 0:00:42]}  Re1 {[%clk 0:00:03]} 40. Rc4 {[%clk 0:00:38]}  Re6 {[%clk 0:00:02]} 41. Kg5 {[%clk 0:00:37]}  Rd6 {[%clk 0:00:02]} 42. Rc5 {[%clk 0:00:33]}  Kg7 {[%clk 0:00:02]} 43. Ra5 {[%clk 0:00:34]}  Re6 {[%clk 0:00:01]} 44. Rxa6 {[%clk 0:00:33]}  Re5+ {[%clk 0:00:02]} 45. Kf4 {[%clk 0:00:34]}  Re6 {[%clk 0:00:02]} 46. Ra7+ {[%clk 0:00:33]}  Kf6 {[%clk 0:00:02]} 47. g5# {[%clk 0:00:33]} 1-0


[Site "https://www.chess.com"]

[Event "Titled Tuesday Blitz July 05 Early 2022"]
[White "Jones, Gawain C B"]
[Black "Taboas Rodriguez, Daniel"]
[WhiteFideId "409561"]
[BlackFideId "2208466"]
[WhiteElo "2657"]
[BlackElo "2429"]
[Result "1-0"]
[Round "01"]
[TimeControl "180+1"]
[Date "2022.07.05"]
[WhiteClock "0:00:06"]
[BlackClock "0:00:03"]

1. g3 {[%clk 0:03:00]}  Nf6 {[%clk 0:02:59]} 2. Bg2 {[%clk 0:03:00]}  g6 {[%clk 0:03:00]} 3. e4 {[%clk 0:03:00]}  d6 {[%clk 0:02:59]} 4. d4 {[%clk 0:03:00]}  Bg7 {[%clk 0:02:59]} 5. c4 {[%clk 0:02:58]}  O-O {[%clk 0:02:59]} 6. Nc3 {[%clk 0:02:59]}  Nc6 {[%clk 0:02:56]} 7. d5 {[%clk 0:02:57]}  Ne5 {[%clk 0:02:56]} 8. Qe2 {[%clk 0:02:53]}  e6 {[%clk 0:02:53]} 9. f4 {[%clk 0:02:53]}  Ned7 {[%clk 0:02:53]} 10. dxe6 {[%clk 0:02:52]}  fxe6 {[%clk 0:02:49]} 11. Nf3 {[%clk 0:02:52]}  e5 {[%clk 0:02:45]} 12. O-O {[%clk 0:02:51]}  exf4 {[%clk 0:02:28]} 13. Bxf4 {[%clk 0:02:45]}  Nh5 {[%clk 0:02:28]} 14. Bg5 {[%clk 0:02:43]}  Bf6 {[%clk 0:02:26]} 15. Bxf6 {[%clk 0:02:39]}  Nhxf6 {[%clk 0:02:24]} 16. e5 {[%clk 0:02:37]}  dxe5 {[%clk 0:02:22]} 17. Rad1 {[%clk 0:02:30]}  Qe7 {[%clk 0:02:19]} 18. Ng5 {[%clk 0:02:30]}  c6 {[%clk 0:02:09]} 19. Nge4 {[%clk 0:02:29]}  Nxe4 {[%clk 0:02:03]} 20. Nxe4 {[%clk 0:02:29]}  Nc5 {[%clk 0:02:00]} 21. Rxf8+ {[%clk 0:02:22]}  Qxf8 {[%clk 0:02:00]} 22. Nd6 {[%clk 0:02:07]}  Qe7 {[%clk 0:01:47]} 23. b4 {[%clk 0:02:06]}  Nd7 {[%clk 0:01:32]} 24. c5 {[%clk 0:01:52]}  Nf6 {[%clk 0:01:31]} 25. Rf1 {[%clk 0:01:41]}  Bg4 {[%clk 0:01:24]} 26. Qc4+ {[%clk 0:01:41]}  Be6 {[%clk 0:01:21]} 27. Qe2 {[%clk 0:01:32]}  Bd5 {[%clk 0:01:21]} 28. Bh3 {[%clk 0:01:19]}  b6 {[%clk 0:01:10]} 29. Nc8 {[%clk 0:01:11]}  Rxc8 {[%clk 0:00:57]} 30. Bxc8 {[%clk 0:01:10]}  bxc5 {[%clk 0:00:57]} 31. bxc5 {[%clk 0:00:55]}  Qxc5+ {[%clk 0:00:58]} 32. Qf2 {[%clk 0:00:56]}  Qxf2+ {[%clk 0:00:56]} 33. Kxf2 {[%clk 0:00:54]}  Kf7 {[%clk 0:00:52]} 34. a3 {[%clk 0:00:52]}  Ke7 {[%clk 0:00:49]} 35. Ke3 {[%clk 0:00:51]}  Be6 {[%clk 0:00:40]} 36. Bxe6 {[%clk 0:00:51]}  Kxe6 {[%clk 0:00:41]} 37. Rc1 {[%clk 0:00:45]}  Kd6 {[%clk 0:00:41]} 38. Rd1+ {[%clk 0:00:44]}  Ke6 {[%clk 0:00:39]} 39. Rd8 {[%clk 0:00:37]}  Ng4+ {[%clk 0:00:38]} 40. Ke4 {[%clk 0:00:36]}  Nxh2 {[%clk 0:00:37]} 41. Re8+ {[%clk 0:00:31]}  Kd6 {[%clk 0:00:32]} 42. Ra8 {[%clk 0:00:23]}  Nf1 {[%clk 0:00:29]} 43. g4 {[%clk 0:00:18]}  Nd2+ {[%clk 0:00:19]} 44. Kd3 {[%clk 0:00:17]}  Nf3 {[%clk 0:00:14]} 45. Rxa7 {[%clk 0:00:18]}  h5 {[%clk 0:00:14]} 46. Rg7 {[%clk 0:00:17]}  hxg4 {[%clk 0:00:12]} 47. Rxg6+ {[%clk 0:00:17]}  Kc5 {[%clk 0:00:12]} 48. Rxg4 {[%clk 0:00:18]}  Nd4 {[%clk 0:00:12]} 49. Kc3 {[%clk 0:00:13]}  Nb5+ {[%clk 0:00:11]} 50. Kb2 {[%clk 0:00:13]}  Nd6 {[%clk 0:00:11]} 51. a4 {[%clk 0:00:12]}  e4 {[%clk 0:00:10]} 52. Kc3 {[%clk 0:00:11]}  e3 {[%clk 0:00:05]} 53. Rg5+ {[%clk 0:00:12]}  Kb6 {[%clk 0:00:06]} 54. Re5 {[%clk 0:00:11]}  Nb7 {[%clk 0:00:05]} 55. Kb4 {[%clk 0:00:07]}  c5+ {[%clk 0:00:02]} 56. Kb3 {[%clk 0:00:05]}  Na5+ {[%clk 0:00:02]} 57. Kc3 {[%clk 0:00:06]}  Nc6 {[%clk 0:00:02]} 58. Re6 {[%clk 0:00:06]}  Ka5 {[%clk 0:00:03]} 59. Rxc6 {[%clk 0:00:06]}  Kxa4 {[%clk 0:00:03]} 60. Rxc5 {[%clk 0:00:06]}  e2 {[%clk 0:00:03]} 61. Re5 {[%clk 0:00:06]} 1-0


[Site "https://www.chess.com"]

[Event "Titled Tuesday Blitz July 05 Early 2022"]
[White "Manukyan, Artyom"]
[Black "Hakobyan, Aram"]
[WhiteFideId "13305786"]
[BlackFideId "13306677"]
[WhiteElo "2034"]
[BlackElo "2557"]
[Result "0-1"]
[Round "01"]
[TimeControl "180+1"]
[Date "2022.07.05"]
[WhiteClock "0:00:01"]
[BlackClock "0:00:23"]

1. e4 {[%clk 0:02:54]}  c5 {[%clk 0:02:59]} 2. Nc3 {[%clk 0:02:53]}  Nc6 {[%clk 0:03:00]} 3. Bb5 {[%clk 0:02:53]}  g6 {[%clk 0:03:00]} 4. Bxc6 {[%clk 0:02:53]}  dxc6 {[%clk 0:02:59]} 5. d3 {[%clk 0:02:54]}  e5 {[%clk 0:02:59]} 6. Be3 {[%clk 0:02:53]}  Nf6 {[%clk 0:02:57]} 7. Qd2 {[%clk 0:02:53]}  h6 {[%clk 0:02:54]} 8. h3 {[%clk 0:02:52]}  Nd7 {[%clk 0:02:54]} 9. Nge2 {[%clk 0:02:48]}  Bg7 {[%clk 0:02:53]} 10. O-O {[%clk 0:02:48]}  Qe7 {[%clk 0:02:50]} 11. f4 {[%clk 0:02:48]}  exf4 {[%clk 0:02:51]} 12. Bxf4 {[%clk 0:02:33]}  Nf8 {[%clk 0:02:39]} 13. Rae1 {[%clk 0:02:28]}  Ne6 {[%clk 0:02:37]} 14. Bg3 {[%clk 0:02:28]}  Qg5 {[%clk 0:02:05]} 15. Qxg5 {[%clk 0:02:18]}  hxg5 {[%clk 0:02:05]} 16. e5 {[%clk 0:02:16]}  O-O {[%clk 0:01:37]} 17. Ne4 {[%clk 0:02:10]}  b6 {[%clk 0:01:38]} 18. Nd6 {[%clk 0:01:57]}  Ba6 {[%clk 0:01:37]} 19. b3 {[%clk 0:01:53]}  Rad8 {[%clk 0:01:35]} 20. a4 {[%clk 0:01:18]}  f5 {[%clk 0:01:07]} 21. exf6 {[%clk 0:01:12]}  Rxf6 {[%clk 0:01:08]} 22. Ne4 {[%clk 0:00:46]}  Rxf1+ {[%clk 0:01:06]} 23. Rxf1 {[%clk 0:00:47]}  b5 {[%clk 0:01:02]} 24. axb5 {[%clk 0:00:25]}  cxb5 {[%clk 0:01:03]} 25. h4 {[%clk 0:00:20]}  c4 {[%clk 0:00:56]} 26. bxc4 {[%clk 0:00:17]}  bxc4 {[%clk 0:00:56]} 27. Nxg5 {[%clk 0:00:07]}  Nxg5 {[%clk 0:00:54]} 28. hxg5 {[%clk 0:00:07]}  cxd3 {[%clk 0:00:55]} 29. cxd3 {[%clk 0:00:08]}  Rxd3 {[%clk 0:00:53]} 30. Kf2 {[%clk 0:00:05]}  Ra3 {[%clk 0:00:36]} 31. Rd1 {[%clk 0:00:04]}  Ra2 {[%clk 0:00:34]} 32. Re1 {[%clk 0:00:04]}  Bc3 {[%clk 0:00:34]} 33. Rc1 {[%clk 0:00:02]}  Rxe2+ {[%clk 0:00:32]} 34. Kf3 {[%clk 0:00:02]}  Bd4 {[%clk 0:00:25]} 35. Rc7 {[%clk 0:00:01]}  Re3+ {[%clk 0:00:24]} 36. Kg4 {[%clk 0:00:01]}  Rxg3+ {[%clk 0:00:23]} 0-1


[Site "https://www.chess.com"]